[Event "*** Titled Tuesday Blitz"]
[Site "Chess.com"]
[Date "2021.02.09"]
[Round "6"]
[White "Indianlad"]
[Black "Goryachkina"]
[Result "1-0"]
[WhiteElo "2905"]
[BlackElo "2678"]
[TimeControl "180+1"]
[EndTime "11:08:40 PST"]
[Termination "Indianlad won on time"]

1. Nf3 {[%clk 0:03:00.7]} 1... d5 {[%clk 0:02:59.6]} 2. d4 {[%clk 0:03:00.5]}
2... Nf6 {[%clk 0:02:59]} 3. Bf4 {[%clk 0:03:00]} 3... c5 {[%clk 0:02:54.4]} 4.
e3 {[%clk 0:02:59.6]} 4... Nc6 {[%clk 0:02:54.1]} 5. Nbd2 {[%clk 0:02:59.3]}
5... cxd4 {[%clk 0:02:40]} 6. exd4 {[%clk 0:02:58.8]} 6... Bf5 {[%clk
0:02:38.8]} 7. Bb5 {[%clk 0:02:54.7]} 7... e6 {[%clk 0:02:37]} 8. c4 {[%clk
0:02:54.3]} 8... dxc4 {[%clk 0:02:24.8]} 9. Ne5 {[%clk 0:02:52.2]} 9... Rc8
{[%clk 0:02:11.5]} 10. Nxc6 {[%clk 0:02:42.7]} 10... bxc6 {[%clk 0:02:10.9]} 11.
Ba6 {[%clk 0:02:42.9]} 11... Bd3 {[%clk 0:01:47.5]} 12. Qa4 {[%clk 0:01:33.8]}
12... Nd5 {[%clk 0:01:37.1]} 13. Bxc8 {[%clk 0:01:32.4]} 13... Qxc8 {[%clk
0:01:27.2]} 14. Bg3 {[%clk 0:01:32.4]} 14... Bb4 {[%clk 0:01:21.1]} 15. a3
{[%clk 0:01:20.5]} 15... Bxd2+ {[%clk 0:01:04.3]} 16. Kxd2 {[%clk 0:01:21.4]}
16... O-O {[%clk 0:01:04]} 17. b3 {[%clk 0:01:16.8]} 17... Qd7 {[%clk
0:00:48.3]} 18. Qa5 {[%clk 0:01:00.4]} 18... Nb6 {[%clk 0:00:43.1]} 19. Qc5
{[%clk 0:01:00.4]} 19... Rd8 {[%clk 0:00:41.2]} 20. a4 {[%clk 0:00:56.4]} 20...
Be4 {[%clk 0:00:16.3]} 21. a5 {[%clk 0:00:53.8]} 21... c3+ {[%clk 0:00:12.9]}
22. Kxc3 {[%clk 0:00:49.4]} 22... Nd5+ {[%clk 0:00:13]} 23. Kd2 {[%clk 0:00:50]}
23... Bxg2 {[%clk 0:00:10.6]} 24. Rhg1 {[%clk 0:00:49.5]} 24... Be4 {[%clk
0:00:10.9]} 25. h4 {[%clk 0:00:40]} 25... h5 {[%clk 0:00:10.7]} 26. Kc1 {[%clk
0:00:30.2]} 26... Bg6 {[%clk 0:00:10.5]} 27. Kb2 {[%clk 0:00:30.5]} 27... Nf6
{[%clk 0:00:09.1]} 28. Rac1 {[%clk 0:00:29.2]} 28... Rc8 {[%clk 0:00:06.3]} 29.
Be5 {[%clk 0:00:27.4]} 29... Nd5 {[%clk 0:00:05.3]} 30. Qc4 {[%clk 0:00:22.7]}
30... Kh7 {[%clk 0:00:04.2]} 31. Qe2 {[%clk 0:00:19.4]} 31... Qb7 {[%clk
0:00:03.8]} 32. Rg5 {[%clk 0:00:18.9]} 32... Qb4 {[%clk 0:00:02.7]} 33. Rxh5+
{[%clk 0:00:16.7]} 33... Kg8 {[%clk 0:00:02.6]} 34. Rg5 {[%clk 0:00:15.5]} 34...
Qxa5 {[%clk 0:00:02.9]} 35. Bd6 {[%clk 0:00:14]} 35... Rd8 {[%clk 0:00:02.7]}
36. Bc5 {[%clk 0:00:13.3]} 36... Rb8 {[%clk 0:00:02.6]} 37. Rxg6 {[%clk
0:00:11]} 37... fxg6 {[%clk 0:00:02.4]} 38. Qxe6+ {[%clk 0:00:11.6]} 38... Kh7
{[%clk 0:00:02.9]} 39. h5 {[%clk 0:00:11.8]} 1-0

[Event "*** Titled Tuesday Blitz"]
[Site "Chess.com"]
[Date "2021.02.09"]
[Round "6"]
[White "Fandorine"]
[Black "Agibileg"]
[Result "1-0"]
[WhiteElo "2841"]
[BlackElo "2502"]
[TimeControl "180+1"]
[EndTime "11:08:40 PST"]
[Termination "Fandorine won on time"]

1. e4 {[%clk 0:02:53.1]} 1... c5 {[%clk 0:02:59.9]} 2. Nf3 {[%clk 0:02:53.1]}
2... e6 {[%clk 0:03:00.2]} 3. d4 {[%clk 0:02:50.8]} 3... cxd4 {[%clk 0:03:01.1]}
4. Nxd4 {[%clk 0:02:51.1]} 4... Nc6 {[%clk 0:03:01.2]} 5. Nc3 {[%clk 0:02:51.4]}
5... a6 {[%clk 0:02:59.9]} 6. Bf4 {[%clk 0:02:44.6]} 6... d6 {[%clk 0:02:48.1]}
7. Nxc6 {[%clk 0:02:44.8]} 7... bxc6 {[%clk 0:02:48.2]} 8. Qd2 {[%clk
0:02:42.4]} 8... e5 {[%clk 0:02:47]} 9. Bg3 {[%clk 0:02:41.2]} 9... Nf6 {[%clk
0:02:45.4]} 10. O-O-O {[%clk 0:02:38.3]} 10... Be7 {[%clk 0:02:45.2]} 11. Be2
{[%clk 0:02:37.6]} 11... O-O {[%clk 0:02:44.3]} 12. f4 {[%clk 0:02:37]} 12...
Qa5 {[%clk 0:02:35]} 13. Kb1 {[%clk 0:02:37]} 13... Kh8 {[%clk 0:01:54.9]} 14.
Bc4 {[%clk 0:02:26]} 14... Rb8 {[%clk 0:01:39.7]} 15. Bb3 {[%clk 0:02:26]} 15...
Bg4 {[%clk 0:01:35.5]} 16. Rde1 {[%clk 0:02:18.2]} 16... Nh5 {[%clk 0:01:35.4]}
17. f5 {[%clk 0:02:13.7]} 17... Bxf5 {[%clk 0:01:30.9]} 18. exf5 {[%clk
0:02:09.9]} 18... f6 {[%clk 0:01:06.3]} 19. Bf2 {[%clk 0:02:06.3]} 19... Nf4
{[%clk 0:01:00.1]} 20. g3 {[%clk 0:02:05.3]} 20... Nh3 {[%clk 0:00:59.8]} 21.
Be3 {[%clk 0:02:00.1]} 21... d5 {[%clk 0:00:58.8]} 22. Ne4 {[%clk 0:01:32.3]}
22... Qb5 {[%clk 0:00:19]} 23. Qg2 {[%clk 0:01:27.1]} 23... dxe4 {[%clk
0:00:17]} 24. Qxh3 {[%clk 0:01:26.9]} 24... a5 {[%clk 0:00:16.6]} 25. a4 {[%clk
0:01:26.4]} 25... Qb7 {[%clk 0:00:15.1]} 26. Qf1 {[%clk 0:01:26.1]} 26... c5
{[%clk 0:00:13.9]} 27. Qc4 {[%clk 0:01:23.1]} 27... Qc6 {[%clk 0:00:12.3]} 28.
Bd2 {[%clk 0:01:22.7]} 28... Rfd8 {[%clk 0:00:10.2]} 29. Bc3 {[%clk 0:01:23.1]}
29... Rd4 {[%clk 0:00:08.1]} 30. Bxd4 {[%clk 0:01:21.9]} 30... exd4 {[%clk
0:00:09]} 31. Qe6 {[%clk 0:01:13.2]} 31... Qxe6 {[%clk 0:00:08.9]} 32. Bxe6
{[%clk 0:01:14.1]} 32... e3 {[%clk 0:00:09.3]} 33. c3 {[%clk 0:01:13.4]} 33...
dxc3 {[%clk 0:00:05.2]} 34. b3 {[%clk 0:01:11]} 34... c4 {[%clk 0:00:04.5]} 35.
Bxc4 {[%clk 0:01:07.7]} 35... Bc5 {[%clk 0:00:04.9]} 36. Kc2 {[%clk 0:01:07.3]}
36... g6 {[%clk 0:00:05]} 37. Rhf1 {[%clk 0:01:03.3]} 37... Kg7 {[%clk
0:00:04.8]} 38. Rf3 {[%clk 0:01:02.7]} 38... Rd8 {[%clk 0:00:04.2]} 39. Rexe3
{[%clk 0:01:02.2]} 39... Rd2+ {[%clk 0:00:03.3]} 40. Kb1 {[%clk 0:00:54.5]}
40... Rd1+ {[%clk 0:00:03.5]} 41. Kc2 {[%clk 0:00:53.5]} 41... Rd2+ {[%clk
0:00:03.9]} 42. Kb1 {[%clk 0:00:53.8]} 42... c2+ {[%clk 0:00:03.5]} 43. Kc1
{[%clk 0:00:53.6]} 43... Ba3+ {[%clk 0:00:03.8]} 44. Kxd2 {[%clk 0:00:54]} 44...
c1=Q+ {[%clk 0:00:04.7]} 45. Ke2 {[%clk 0:00:48.1]} 45... Bc5 {[%clk 0:00:04.4]}
46. Rd3 {[%clk 0:00:40.9]} 46... Qg1 {[%clk 0:00:02.6]} 47. h4 {[%clk
0:00:37.1]} 47... Qg2+ {[%clk 0:00:02.1]} 48. Ke1 {[%clk 0:00:34.9]} 1-0

[Event "*** Titled Tuesday Blitz"]
[Site "Chess.com"]
[Date "2021.02.09"]
[Round "6"]
[White "zimmm36"]
[Black "Savagelittlemole"]
[Result "1/2-1/2"]
[WhiteElo "2222"]
[BlackElo "2396"]
[TimeControl "180+1"]
[EndTime "11:08:40 PST"]
[Termination "Game drawn by repetition"]

1. d4 {[%clk 0:03:00.9]} 1... Nf6 {[%clk 0:02:59.5]} 2. c4 {[%clk 0:03:00.8]}
2... c5 {[%clk 0:02:59.7]} 3. d5 {[%clk 0:03:00.3]} 3... e6 {[%clk 0:03:00.1]}
4. Nc3 {[%clk 0:02:59.1]} 4... exd5 {[%clk 0:03:00.5]} 5. cxd5 {[%clk 0:03:00]}
5... d6 {[%clk 0:03:01.1]} 6. e4 {[%clk 0:03:00.1]} 6... g6 {[%clk 0:03:01.7]}
7. f4 {[%clk 0:03:00.7]} 7... Bg7 {[%clk 0:03:02.3]} 8. Bb5+ {[%clk 0:02:58.2]}
8... Nfd7 {[%clk 0:03:02]} 9. a4 {[%clk 0:02:56.7]} 9... O-O {[%clk 0:03:01.9]}
10. Nf3 {[%clk 0:02:56.2]} 10... Na6 {[%clk 0:02:55.7]} 11. O-O {[%clk
0:02:54.8]} 11... Nc7 {[%clk 0:02:55.8]} 12. Bd3 {[%clk 0:02:54.3]} 12... b6
{[%clk 0:02:55.1]} 13. f5 {[%clk 0:02:54.7]} 13... Ne5 {[%clk 0:02:51.8]} 14.
Bf4 {[%clk 0:02:53.1]} 14... Nxf3+ {[%clk 0:02:40.5]} 15. Qxf3 {[%clk
0:02:51.2]} 15... Qe7 {[%clk 0:02:37.6]} 16. Bg3 {[%clk 0:02:46.7]} 16... Be5
{[%clk 0:02:36.1]} 17. f6 {[%clk 0:02:44.3]} 17... Qe8 {[%clk 0:02:34.4]} 18.
Kh1 {[%clk 0:02:39]} 18... Kh8 {[%clk 0:02:21.9]} 19. Qe3 {[%clk 0:02:34.1]}
19... Rg8 {[%clk 0:02:16.8]} 20. Bxe5 {[%clk 0:02:28.2]} 20... Qxe5 {[%clk
0:02:17.7]} 21. Qh6 {[%clk 0:02:28.5]} 21... g5 {[%clk 0:02:02.7]} 22. Rf3
{[%clk 0:02:11.2]} 22... Rg6 {[%clk 0:02:02.5]} 23. Qf8+ {[%clk 0:02:07.4]}
23... Rg8 {[%clk 0:01:59.3]} 24. Qxf7 {[%clk 0:02:06.5]} 24... Bg4 {[%clk
0:01:58.5]} 25. Rg3 {[%clk 0:02:03.3]} 25... Raf8 {[%clk 0:01:16.6]} 26. Qxc7
{[%clk 0:01:59.3]} 26... Bh5 {[%clk 0:01:16.7]} 27. Rf1 {[%clk 0:01:42.7]} 27...
Rf7 {[%clk 0:01:15.7]} 28. Qc6 {[%clk 0:01:38.3]} 28... Rgf8 {[%clk 0:01:06.8]}
29. Rf5 {[%clk 0:01:32.5]} 29... Qd4 {[%clk 0:01:01.7]} 30. Rfxg5 {[%clk
0:01:24.5]} 30... Bg6 {[%clk 0:00:52]} 31. Qxd6 {[%clk 0:01:11.8]} 31... Rxf6
{[%clk 0:00:51.7]} 32. Qxf6+ {[%clk 0:00:37.3]} 32... Qxf6 {[%clk 0:00:43.6]}
33. h3 {[%clk 0:00:35]} 33... Qd4 {[%clk 0:00:34.2]} 34. Kh2 {[%clk 0:00:32.8]}
34... c4 {[%clk 0:00:34.2]} 35. Bb1 {[%clk 0:00:28]} 35... Rf1 {[%clk
0:00:31.1]} 36. R3g4 {[%clk 0:00:20]} 36... Qg1+ {[%clk 0:00:25.6]} 37. Kg3
{[%clk 0:00:20.2]} 37... Qf2+ {[%clk 0:00:25.1]} 38. Kh2 {[%clk 0:00:19.2]}
38... Qxb2 {[%clk 0:00:21.6]} 39. d6 {[%clk 0:00:18.5]} 39... Qxc3 {[%clk
0:00:14.6]} 40. d7 {[%clk 0:00:16.6]} 40... Qd4 {[%clk 0:00:13.8]} 41. Rd5
{[%clk 0:00:15.9]} 41... Qg1+ {[%clk 0:00:13.8]} 42. Kg3 {[%clk 0:00:16.2]}
42... Qf2+ {[%clk 0:00:11.5]} 43. Kh2 {[%clk 0:00:15.8]} 43... Qg1+ {[%clk
0:00:08.9]} 44. Kg3 {[%clk 0:00:16.2]} 44... Qf2+ {[%clk 0:00:07.9]} 45. Kh2
{[%clk 0:00:16.6]} 45... Qg1+ {[%clk 0:00:08.1]} 1/2-1/2

[Event "*** Titled Tuesday Blitz"]
[Site "Chess.com"]
[Date "2021.02.09"]
[Round "6"]
[White "GianmarcoVaR"]
[Black "Ghost_Pepper"]
[Result "0-1"]
[WhiteElo "2571"]
[BlackElo "2422"]
[TimeControl "180+1"]
[EndTime "11:08:41 PST"]
[Termination "Ghost_Pepper won on time"]

1. e4 {[%clk 0:02:52.9]} 1... c5 {[%clk 0:02:59.5]} 2. Nf3 {[%clk 0:02:52.5]}
2... d6 {[%clk 0:02:59.5]} 3. Bc4 {[%clk 0:02:51.2]} 3... Nf6 {[%clk 0:02:55.7]}
4. d3 {[%clk 0:02:51.1]} 4... g6 {[%clk 0:02:51.5]} 5. O-O {[%clk 0:02:47.8]}
5... Bg7 {[%clk 0:02:51.5]} 6. c3 {[%clk 0:02:47]} 6... O-O {[%clk 0:02:51.1]}
7. h3 {[%clk 0:02:43.7]} 7... Nc6 {[%clk 0:02:49.9]} 8. Re1 {[%clk 0:02:41.6]}
8... Rb8 {[%clk 0:02:48.9]} 9. Bb3 {[%clk 0:02:39.1]} 9... b5 {[%clk 0:02:48.7]}
10. d4 {[%clk 0:02:38.5]} 10... b4 {[%clk 0:02:38.5]} 11. Be3 {[%clk 0:01:57.3]}
11... bxc3 {[%clk 0:02:31]} 12. bxc3 {[%clk 0:01:57.3]} 12... cxd4 {[%clk
0:02:30.2]} 13. cxd4 {[%clk 0:01:57.2]} 13... Na5 {[%clk 0:02:30.2]} 14. Bc2
{[%clk 0:01:55.3]} 14... Nc4 {[%clk 0:02:26.5]} 15. Bf4 {[%clk 0:01:45.9]} 15...
Ba6 {[%clk 0:02:04.1]} 16. Nc3 {[%clk 0:01:37.6]} 16... Qa5 {[%clk 0:02:01]} 17.
Ne2 {[%clk 0:01:28.6]} 17... Nb2 {[%clk 0:01:47.6]} 18. Qd2 {[%clk 0:01:28.4]}
18... Qxd2 {[%clk 0:01:46.4]} 19. Bxd2 {[%clk 0:01:27.2]} 19... Rfc8 {[%clk
0:01:45.8]} 20. Nc3 {[%clk 0:00:57.7]} 20... Nc4 {[%clk 0:01:27.2]} 21. e5
{[%clk 0:00:28.6]} 21... Nxd2 {[%clk 0:01:14.4]} 22. Nxd2 {[%clk 0:00:26.9]}
22... Rxc3 {[%clk 0:01:11.2]} 23. exf6 {[%clk 0:00:27.2]} 23... Bxf6 {[%clk
0:01:10.9]} 24. Bb3 {[%clk 0:00:24.2]} 24... Bxd4 {[%clk 0:01:04]} 25. Rad1
{[%clk 0:00:13.1]} 25... Rc7 {[%clk 0:00:44.1]} 26. Ne4 {[%clk 0:00:09.8]} 26...
Be5 {[%clk 0:00:43.9]} 27. Ng5 {[%clk 0:00:09.4]} 27... e6 {[%clk 0:00:42.7]}
28. Nf3 {[%clk 0:00:06]} 28... Bf4 {[%clk 0:00:20.1]} 29. g3 {[%clk 0:00:05.3]}
29... Bh6 {[%clk 0:00:20]} 30. Rxd6 {[%clk 0:00:05.6]} 30... Bb7 {[%clk
0:00:19.8]} 31. Ne5 {[%clk 0:00:04.2]} 31... Bf8 {[%clk 0:00:19.2]} 32. Rd7
{[%clk 0:00:02.4]} 32... Rbc8 {[%clk 0:00:17]} 33. Rd2 {[%clk 0:00:01.7]} 33...
a5 {[%clk 0:00:15.9]} 34. Rdd1 {[%clk 0:00:01.4]} 34... Bb4 {[%clk 0:00:14.6]}
35. Re2 {[%clk 0:00:01.1]} 35... h5 {[%clk 0:00:14.4]} 36. Nd7 {[%clk
0:00:01.6]} 36... Rc1 {[%clk 0:00:13.9]} 37. Nf6+ {[%clk 0:00:01.8]} 37... Kg7
{[%clk 0:00:13.4]} 38. Nd7 {[%clk 0:00:02.4]} 38... Rxd1+ {[%clk 0:00:13]} 39.
Bxd1 {[%clk 0:00:03.3]} 39... Rc1 {[%clk 0:00:12.8]} 0-1

[Event "*** Titled Tuesday Blitz"]
[Site "Chess.com"]
[Date "2021.02.09"]
[Round "6"]
[White "Fortitudine"]
[Black "JiiHart"]
[Result "1-0"]
[WhiteElo "2330"]
[BlackElo "2101"]
[TimeControl "180+1"]
[EndTime "11:08:41 PST"]
[Termination "Fortitudine won by resignation"]

1. c4 {[%clk 0:03:00.9]} 1... e5 {[%clk 0:02:59.3]} 2. g3 {[%clk 0:03:00.2]}
2... Nf6 {[%clk 0:02:58.9]} 3. Bg2 {[%clk 0:03:00.1]} 3... Be7 {[%clk
0:02:59.1]} 4. Nc3 {[%clk 0:02:58.3]} 4... O-O {[%clk 0:02:58.9]} 5. Nf3 {[%clk
0:02:57.2]} 5... Nc6 {[%clk 0:02:58.3]} 6. O-O {[%clk 0:02:56.3]} 6... d5 {[%clk
0:02:57.2]} 7. cxd5 {[%clk 0:02:55.6]} 7... Nxd5 {[%clk 0:02:57.3]} 8. d3 {[%clk
0:02:52.8]} 8... Be6 {[%clk 0:02:53.2]} 9. Bd2 {[%clk 0:02:51.4]} 9... Nb6
{[%clk 0:02:41.8]} 10. Rc1 {[%clk 0:02:43.4]} 10... Kh8 {[%clk 0:02:36.4]} 11.
a3 {[%clk 0:02:38.1]} 11... f5 {[%clk 0:02:33]} 12. Na4 {[%clk 0:02:29.2]} 12...
Bd5 {[%clk 0:02:01.1]} 13. Nc5 {[%clk 0:02:19.3]} 13... Rb8 {[%clk 0:01:48.2]}
14. e4 {[%clk 0:02:00]} 14... Bxc5 {[%clk 0:01:42.2]} 15. exd5 {[%clk 0:01:58]}
15... Qxd5 {[%clk 0:01:17]} 16. Ng5 {[%clk 0:01:57.9]} 16... e4 {[%clk
0:01:00.5]} 17. Rxc5 {[%clk 0:01:08.4]} 17... Qxc5 {[%clk 0:00:58.9]} 18. Qh5
{[%clk 0:01:02.4]} 18... h6 {[%clk 0:00:52.7]} 19. Bc3 {[%clk 0:01:00.9]} 19...
Nd4 {[%clk 0:00:27.8]} 20. Bxd4 {[%clk 0:00:51.5]} 20... Qxd4 {[%clk 0:00:26.5]}
21. dxe4 {[%clk 0:00:51.4]} 21... Qf6 {[%clk 0:00:21.6]} 22. h4 {[%clk
0:00:42.8]} 22... Rbe8 {[%clk 0:00:16.8]} 23. exf5 {[%clk 0:00:37.9]} 23... c6
{[%clk 0:00:16.1]} 24. g4 {[%clk 0:00:36.5]} 24... Nc4 {[%clk 0:00:15.4]} 25.
Ne4 {[%clk 0:00:34.5]} 25... Qe5 {[%clk 0:00:14.5]} 26. f6 {[%clk 0:00:28.1]}
26... Rxf6 {[%clk 0:00:12.3]} 27. Nxf6 {[%clk 0:00:26.8]} 27... gxf6 {[%clk
0:00:12.3]} 28. Qxh6+ {[%clk 0:00:27.1]} 28... Kg8 {[%clk 0:00:12.6]} 29. Qg6+
{[%clk 0:00:27.4]} 29... Kf8 {[%clk 0:00:12.7]} 30. h5 {[%clk 0:00:28]} 30...
Nd6 {[%clk 0:00:12]} 31. h6 {[%clk 0:00:28.1]} 31... Qg5 {[%clk 0:00:11.8]} 32.
Qd3 {[%clk 0:00:27.8]} 32... Re6 {[%clk 0:00:09.1]} 33. h7 {[%clk 0:00:25.7]}
33... Kg7 {[%clk 0:00:06.4]} 34. h8=Q+ {[%clk 0:00:25.6]} 34... Kxh8 {[%clk
0:00:06.3]} 35. Qd4 {[%clk 0:00:25.1]} 35... Kg7 {[%clk 0:00:05.6]} 36. Qxa7
{[%clk 0:00:25.3]} 36... Qb5 {[%clk 0:00:03.9]} 37. Qb8 {[%clk 0:00:25.1]} 37...
Re7 {[%clk 0:00:03.5]} 38. Qxd6 {[%clk 0:00:25.2]} 38... Qe5 {[%clk 0:00:02.7]}
39. Qxe5 {[%clk 0:00:25.3]} 39... Rxe5 {[%clk 0:00:03.1]} 40. Bf3 {[%clk
0:00:25.8]} 40... Rb5 {[%clk 0:00:03.6]} 41. Rb1 {[%clk 0:00:25.4]} 41... Rb3
{[%clk 0:00:03.4]} 42. Bd1 {[%clk 0:00:24.9]} 42... Kg6 {[%clk 0:00:03.8]} 43.
Bxb3 {[%clk 0:00:24.5]} 1-0

[Event "*** Titled Tuesday Blitz"]
[Site "Chess.com"]
[Date "2021.02.09"]
[Round "6"]
[White "yuki_chess123"]
[Black "onnoelgersma"]
[Result "0-1"]
[WhiteElo "2290"]
[BlackElo "2462"]
[TimeControl "180+1"]
[EndTime "11:08:44 PST"]
[Termination "onnoelgersma won by resignation"]

1. d4 {[%clk 0:03:00.9]} 1... d5 {[%clk 0:02:59.2]} 2. c4 {[%clk 0:03:01]} 2...
e6 {[%clk 0:02:59.7]} 3. Nc3 {[%clk 0:03:01]} 3... Nf6 {[%clk 0:02:59.7]} 4. Nf3
{[%clk 0:03:01.3]} 4... a6 {[%clk 0:02:59.4]} 5. cxd5 {[%clk 0:03:01.3]} 5...
exd5 {[%clk 0:03:00.3]} 6. Bg5 {[%clk 0:03:01.3]} 6... Be6 {[%clk 0:03:00.3]} 7.
e3 {[%clk 0:03:01.3]} 7... Bd6 {[%clk 0:03:00.9]} 8. Bd3 {[%clk 0:02:46.1]} 8...
Nbd7 {[%clk 0:03:00.1]} 9. O-O {[%clk 0:02:44.7]} 9... O-O {[%clk 0:03:00.2]}
10. b4 {[%clk 0:02:36.6]} 10... c6 {[%clk 0:02:58.4]} 11. a4 {[%clk 0:02:33.8]}
11... Bxb4 {[%clk 0:02:43.4]} 12. Bxh7+ {[%clk 0:02:33.2]} 12... Kh8 {[%clk
0:02:28.7]} 13. Na2 {[%clk 0:02:20.5]} 13... Bd6 {[%clk 0:02:09.9]} 14. Bc2
{[%clk 0:02:16.2]} 14... b5 {[%clk 0:02:09]} 15. Nc1 {[%clk 0:01:57.9]} 15...
Nb6 {[%clk 0:02:06.1]} 16. Ne5 {[%clk 0:01:56.2]} 16... Rc8 {[%clk 0:01:57.9]}
17. axb5 {[%clk 0:01:50.4]} 17... axb5 {[%clk 0:01:57.6]} 18. Ra6 {[%clk
0:01:40.4]} 18... Nc4 {[%clk 0:01:54.5]} 19. Nxc6 {[%clk 0:01:39.8]} 19... Rxc6
{[%clk 0:00:56.7]} 20. Rxc6 {[%clk 0:01:39.1]} 20... Kg8 {[%clk 0:00:54]} 21.
Nb3 {[%clk 0:01:15.8]} 21... Bg4 {[%clk 0:00:27.1]} 22. f3 {[%clk 0:01:00.3]}
22... Bd7 {[%clk 0:00:23.9]} 23. Ra6 {[%clk 0:00:46]} 23... Bxh2+ {[%clk
0:00:13.6]} 24. Kxh2 {[%clk 0:00:43.2]} 24... Ng4+ {[%clk 0:00:13.5]} 25. fxg4
{[%clk 0:00:43.7]} 25... Qxg5 {[%clk 0:00:13.9]} 26. Qf3 {[%clk 0:00:38.6]}
26... Nxe3 {[%clk 0:00:14.1]} 27. Bf5 {[%clk 0:00:32.8]} 27... Bxf5 {[%clk
0:00:11.7]} 28. gxf5 {[%clk 0:00:32.7]} 28... Nxf1+ {[%clk 0:00:11.6]} 29. Qxf1
{[%clk 0:00:32]} 29... Re8 {[%clk 0:00:11.8]} 30. Nc5 {[%clk 0:00:26.8]} 30...
Qh4+ {[%clk 0:00:04.6]} 31. Kg1 {[%clk 0:00:27.1]} 31... Re1 {[%clk 0:00:04.5]}
32. Ra8+ {[%clk 0:00:25.1]} 32... Kh7 {[%clk 0:00:04.8]} 33. Nd7 {[%clk
0:00:25.8]} 33... Rxf1+ {[%clk 0:00:04.8]} 34. Kxf1 {[%clk 0:00:26.5]} 34...
Qf4+ {[%clk 0:00:05.4]} 35. Kg1 {[%clk 0:00:26.8]} 35... Qxf5 {[%clk 0:00:06.1]}
36. Nf8+ {[%clk 0:00:26]} 36... Kh6 {[%clk 0:00:06.8]} 37. Ra6+ {[%clk
0:00:26.3]} 37... g6 {[%clk 0:00:06.5]} 38. Ra7 {[%clk 0:00:24.8]} 38... Qc8
{[%clk 0:00:06.6]} 39. Nd7 {[%clk 0:00:23.6]} 39... Qc1+ {[%clk 0:00:06.1]} 40.
Kh2 {[%clk 0:00:22.9]} 40... Qf4+ {[%clk 0:00:06.7]} 41. g3 {[%clk 0:00:23.1]}
41... Qxd4 {[%clk 0:00:07.6]} 42. Rb7 {[%clk 0:00:22.7]} 42... Qd2+ {[%clk
0:00:07.3]} 43. Kh3 {[%clk 0:00:22.1]} 43... Qd1 {[%clk 0:00:07.6]} 44. Nf6
{[%clk 0:00:21.2]} 44... Qh1+ {[%clk 0:00:07.6]} 45. Kg4 {[%clk 0:00:21.1]}
45... Qd1+ {[%clk 0:00:07.8]} 46. Kh3 {[%clk 0:00:21.3]} 46... Qf1+ {[%clk
0:00:07.5]} 47. Kg4 {[%clk 0:00:20.7]} 47... Qxf6 {[%clk 0:00:07.9]} 0-1

[Event "*** Titled Tuesday Blitz"]
[Site "Chess.com"]
[Date "2021.02.09"]
[Round "6"]
[White "ailime26"]
[Black "DinaBelenkaya"]
[Result "1-0"]
[WhiteElo "2131"]
[BlackElo "2353"]
[TimeControl "180+1"]
[EndTime "11:08:44 PST"]
[Termination "ailime26 won on time"]

1. e4 {[%clk 0:02:57.5]} 1... d5 {[%clk 0:02:59.2]} 2. exd5 {[%clk 0:02:57.2]}
2... Qxd5 {[%clk 0:02:58.9]} 3. Nc3 {[%clk 0:02:55.5]} 3... Qa5 {[%clk
0:02:58.2]} 4. Nf3 {[%clk 0:02:53.8]} 4... Nf6 {[%clk 0:02:54.5]} 5. d4 {[%clk
0:02:51.4]} 5... c6 {[%clk 0:02:53]} 6. Bd2 {[%clk 0:02:50.6]} 6... Qb6 {[%clk
0:02:52.3]} 7. Be2 {[%clk 0:02:38.6]} 7... Bf5 {[%clk 0:02:45.6]} 8. O-O {[%clk
0:02:37.9]} 8... e6 {[%clk 0:02:44.8]} 9. Na4 {[%clk 0:02:37]} 9... Qc7 {[%clk
0:02:43.3]} 10. c4 {[%clk 0:02:35.4]} 10... Be7 {[%clk 0:02:42.1]} 11. Ne5
{[%clk 0:02:34.5]} 11... Nbd7 {[%clk 0:02:40.6]} 12. Bf4 {[%clk 0:02:34]} 12...
Nxe5 {[%clk 0:02:29.7]} 13. Bxe5 {[%clk 0:02:30.9]} 13... Bd6 {[%clk 0:02:29.1]}
14. Qb3 {[%clk 0:02:15.7]} 14... O-O-O {[%clk 0:01:55.6]} 15. Nc5 {[%clk
0:02:12.8]} 15... Bxe5 {[%clk 0:01:44.9]} 16. dxe5 {[%clk 0:02:12.1]} 16... Nd7
{[%clk 0:01:45.5]} 17. Qa3 {[%clk 0:01:50.7]} 17... Kb8 {[%clk 0:01:31.1]} 18.
Nxd7+ {[%clk 0:01:43.5]} 18... Rxd7 {[%clk 0:01:32]} 19. Qe3 {[%clk 0:01:39.9]}
19... Rhd8 {[%clk 0:01:29.5]} 20. Rad1 {[%clk 0:01:39.3]} 20... Qa5 {[%clk
0:01:26.2]} 21. c5 {[%clk 0:01:33.7]} 21... Rd5 {[%clk 0:01:16.2]} 22. Bf3
{[%clk 0:01:28.6]} 22... Rd3 {[%clk 0:01:12.3]} 23. Rxd3 {[%clk 0:01:20.2]}
23... Rxd3 {[%clk 0:01:13.2]} 24. Qg5 {[%clk 0:01:19.6]} 24... Bg6 {[%clk
0:00:48.9]} 25. Qe7 {[%clk 0:00:55.1]} 25... a6 {[%clk 0:00:28.9]} 26. a3 {[%clk
0:00:49.6]} 26... Qd2 {[%clk 0:00:26.4]} 27. b4 {[%clk 0:00:37.4]} 27... Qc3
{[%clk 0:00:15.4]} 28. Be2 {[%clk 0:00:09.9]} 28... Rd2 {[%clk 0:00:10.1]} 29.
Bf3 {[%clk 0:00:08.5]} 29... Qxe5 {[%clk 0:00:08.7]} 30. a4 {[%clk 0:00:05.3]}
30... Qc7 {[%clk 0:00:07.4]} 31. Qe8+ {[%clk 0:00:04.8]} 31... Ka7 {[%clk
0:00:07.3]} 32. b5 {[%clk 0:00:04.4]} 32... cxb5 {[%clk 0:00:04.4]} 33. axb5
{[%clk 0:00:03.9]} 33... Qxc5 {[%clk 0:00:03]} 34. bxa6 {[%clk 0:00:03.8]} 34...
Rb2 {[%clk 0:00:01.4]} 35. Qa4 {[%clk 0:00:03.6]} 1-0